fUST/lending_fUST_20240805
["ID","MTS","AMOUNT","RATE_DAILY","PERIOD"]
[334236332,1722852654372,-500.0,0.00041643,31]
[334236333,1722852654383,-684.15,0.00041643,31]
[334236334,1722852654393,-500.0,0.00041643,31]
[334236335,1722852654403,-500.0,0.00041643,31]
[334236336,1722852654413,-881.842617,0.00041643,14]
[334236337,1722852654422,-500.0,0.00041643,31]
[334236338,1722852654432,-881.842617,0.00041643,14]
[334236339,1722852654442,-500.0,0.00041643,31]
[334236340,1722852654452,-500.0,0.00041643,31]
[334236341,1722852654461,-1408.67,0.00041643,31]
[334236342,1722852654471,-500.0,0.00041643,31]
[334236343,1722852654480,-500.0,0.00041643,31]
[334236344,1722852654489,-500.0,0.00041643,31]
[334236345,1722852654499,-500.0,0.00041643,31]
[334236346,1722852654508,-500.0,0.00041643,31]
[334236347,1722852654518,-500.0,0.00041643,31]
[334236348,1722852654531,-194.78773748,0.00041643,31]
[334236349,1722852654541,-770.95,0.00041643,31]
[334236350,1722852654551,-1330.03,0.00041643,31]
[334236351,1722852654560,-506.73,0.00041643,31]
[334236352,1722852654570,-500.0,0.00041643,31]
[334236353,1722852654579,-500.0,0.00041643,31]
[334236354,1722852654588,-500.0,0.00041643,31]
[334236355,1722852654596,-500.0,0.00041643,31]
[334236356,1722852654605,-565.66,0.00041643,31]
[334236357,1722852654615,-1576.95,0.00041643,31]
[334236358,1722852654625,-500.0,0.00041643,31]
[334236359,1722852654635,-689.13,0.00041643,31]
[334236360,1722852654644,-505.24411692,0.00041643,31]
[334236361,1722852654654,-500.0,0.00041643,31]
[334236362,1722852654663,-500.0,0.00041643,31]
[334236363,1722852654673,-2738.84,0.00041643,31]
[334236364,1722852654682,-500.0,0.00041643,31]
[334236365,1722852654691,-500.0,0.00041643,31]
[334236366,1722852654701,-534.02,0.00041643,31]
[334236367,1722852654710,-554.87628328,0.00041643,31]
[334236368,1722852654719,-500.0,0.00041643,31]
[334236369,1722852654728,-500.0,0.00041643,31]
[334236370,1722852654737,-500.0,0.00041643,31]
[334236371,1722852654747,-225.39159938,0.00041643,31]
[334236372,1722852654756,-500.0,0.00041643,31]
[334236373,1722852654767,-6337.10970716,0.00041643,31]
[334236374,1722852655123,-500.0,0.00041095,31]
[334236375,1722852655134,-1146.92139279,0.00041643,31]
[334236377,1722852929548,4985.73,9.011e-05,2]
[334236382,1722853278816,1207.15567232,0.00027,120]
[334236385,1722853559155,-154.71377951,9.999e-05,2]
[334236386,1722853559181,-154.83742071,9.999e-05,2]
[334236387,1722853559204,-161.182861,0.00014247,2]
[334236388,1722853559225,-3247.98042599,0.00015707,2]
[334236389,1722853559247,-250.0,0.00019041,2]
[334236390,1722853559273,-1159.12366139,0.00019177,2]
[334236391,1722853559299,-1643.15842058,0.00019451,7]
[334236392,1722853559322,-42341.71391136,0.00019477,2]
[334236393,1722853559345,-9642.56191171,0.00019477,2]
[334236394,1722853559370,-7001.77703298,0.00019547,2]
[334236395,1722853559392,-2278.204521,0.00019547,3]
[334236396,1722853559415,-295.59945673,0.00019874,2]
[334236397,1722853559441,-170.938483,0.00019974,2]
[334236398,1722853559463,-21904.53468543,0.00019999,2]
[334236399,1722853559485,-2278.204521,0.00019999,3]
[334236400,1722853559507,-1500.0,0.00019999,2]
[334236401,1722853559529,-1500.0,0.00019999,2]
[334236402,1722853559552,-1330.00445243,0.00019999,2]
[334236403,1722853559574,-277.18370616,0.00019999,2]
[334236404,1722853559595,-156.35315554,0.0002,2]
[334236405,1722853559617,-1632.70804043,0.0002,2]
[334236406,1722853559639,-1392.59479936,0.0002028,2]
[334236407,1722853559661,-493.99436561,0.00020721,2]
[334236408,1722853559685,-15088.473537,0.00020998,2]
[334236410,1722853626107,-20759.5327798,0.00019547,2]
[334236411,1722853626132,-3087.63872233,0.00019999,2]
[334236412,1722853626157,-309.70571345,0.0002,2]
[334236413,1722853626177,-294.09032939,0.00020721,2]
[334236414,1722853626200,-6895.35234222,0.00020998,2]
[334236415,1722853626221,-912.4763458,0.00020998,2]
[334236416,1722853626242,-1225.91366278,0.00020998,2]
[334236417,1722853626264,-2124.51614001,0.00020999,2]
[334236418,1722853626292,-2124.51614001,0.00020999,2]
[334236419,1722853626314,-1162.86940617,0.00020999,2]
[334236420,1722853626337,-1610.68802731,0.00020999,2]
[334236421,1722853626364,-150.0,0.00021,2]
[334236422,1722853626405,-6950.04770215,0.00021038,3]
[334236423,1722853626427,-1321.55756795,0.00021906,2]
[334236424,1722853626450,-250.0,0.00022995,2]
[334236425,1722853626475,-200.0,0.00024658,15]
[334236426,1722853626497,-155.59865243,0.00025,2]
[334236427,1722853626518,-402.3465429,0.00025,2]
[334236428,1722853626538,-154.74467129,0.00025,2]
[334236429,1722853626558,-2278.204521,0.00025452,3]
[334236430,1722853626580,-161.182861,0.00026521,2]
[334236431,1722853626607,-152.11,0.000266,31]
[334236432,1722853626635,-152.11,0.000266,31]
[334236433,1722853626663,-152.11,0.000266,31]
[334236434,1722853626684,-245.19657933,0.0002661,2]
[334236435,1722853626706,-160.54991199,0.00026639,2]
[334236436,1722853626727,-907.00479806,0.00026865,10]
[334236437,1722853626750,-6950.04770215,0.0002698,3]
[334236438,1722853626771,-230.28851249,0.00027,2]
[334236439,1722853626791,-189.52144051,0.00027,2]
[334236440,1722853626812,-154.71377951,0.00027,15]
[334236441,1722853626833,-907.00479806,0.00027134,10]
[334236442,1722853626854,-230.385105,0.00027397,120]
[334236443,1722853626875,-907.00479806,0.00027402,10]
[334236444,1722853626898,-1058.1722644,0.00027671,12]
[334236445,1722853626918,-1058.1722644,0.0002794,12]
[334236446,1722853626939,-837.68103004,0.00028208,12]
[334236447,1722853626959,-151.0,0.0003,120]
[334236448,1722853626981,-151.0,0.0003,120]
[334236449,1722853627008,-152.11,0.000303,31]
[334236450,1722853627036,-152.11,0.000303,31]
[334236451,1722853627057,-151.0,0.00031041,120]
[334236452,1722853627079,-151.0,0.00031808,120]
[334236453,1722853627100,-230.385105,0.00031963,120]
[334236454,1722853627121,-151.0,0.00032082,120]
[334236455,1722853627144,-1944.66510501,0.00032717,3]
[334236456,1722853632106,-4181.02325297,0.00020998,2]
[334236457,1722853632128,-881.47696693,0.00026619,2]
[334236458,1722853632152,-29637.75489499,0.00032717,3]
[334236459,1722853632173,-12955.45746295,0.00032727,4]
[334236460,1722853632195,-372.41572805,0.00032727,4]
[334236461,1722853632217,-2207.69845376,0.00032727,7]
[334236462,1722853632239,-2190.8769063,0.00032727,2]
[334236463,1722853632259,-1871.04867476,0.00032727,2]
[334236464,1722853632282,-1500.0,0.00032727,4]
[334236465,1722853632307,-18507.35334905,0.00032727,4]
[334236466,1722853632330,-1871.04867476,0.00032727,2]
[334236467,1722853632352,-21295.03879813,0.00032727,2]
[334236468,1722853632374,-1619.97654968,0.00032727,4]
[334236469,1722853632397,-151.0,0.00033123,120]
[334236470,1722853632418,-151.0,0.00033616,120]
[334236471,1722853632446,-152.11,0.00034,31]
[334236472,1722853632475,-152.11,0.00034,31]
[334236473,1722853632496,-151.0,0.00034164,120]
[334236474,1722853632517,-640.32095285,0.00035,7]
[334236475,1722853632539,-151.0,0.00035205,120]
[334236476,1722853632560,-151.0,0.00035425,120]
[334236477,1722853632581,-337.86899135,0.00035487,2]
[334236478,1722853632603,-5790.66233508,0.00035606,4]
[334236479,1722853632634,-1159.38536707,0.00035606,4]
[334236480,1722853632655,-26879.84,0.00035951,3]
[334236481,1722853632677,-153.0,0.00035961,2]
[334236482,1722853632698,-153.0,0.00035961,2]
[334236483,1722853632720,-153.0,0.00035961,2]
[334236484,1722853632741,-151.0,0.00036247,120]
[334236485,1722853632762,-230.385105,0.0003653,120]
[334236486,1722853632785,-337.86899133,0.00036864,2]
[334236487,1722853632806,-151.0,0.00037233,120]
[334236488,1722853632827,-151.0,0.00037288,120]
[334236489,1722853632848,-337.86899133,0.00038241,2]
[334236490,1722853632869,-151.0,0.00038329,120]
[334236491,1722853632892,-161.182861,0.00038795,2]
[334236492,1722853632914,-151.0,0.00039041,120]
[334236493,1722853632935,-151.0,0.0003937,120]
[334236494,1722853632956,-337.86899133,0.00039618,2]
[334236495,1722853632977,-150.5,0.0003977,120]
[334236496,1722853633000,-271.0,0.0003977,120]
[334236497,1722853633022,-150.5,0.0003978,120]
[334236498,1722853633045,-271.0,0.0003978,120]
[334236499,1722853633066,-150.5,0.0003979,120]
[334236500,1722853633089,-271.0,0.0003979,120]
[334236501,1722853633110,-10225.15,0.000398,120]
[334236502,1722853633135,-6950.04770215,0.0003999,5]
[334236503,1722853633158,-5000.0,0.0004,40]
[334236504,1722853633179,-200.0,0.0004,2]
[334236505,1722853633200,-151.0,0.00040411,120]
[334236506,1722853633222,-150.0,0.00040491,2]
[334236507,1722853633243,-507.0,0.00040491,2]
[334236508,1722853633265,-10225.15,0.0004053,120]
[334236509,1722853633293,-500.0,0.00040589,31]
[334236510,1722853633316,-500.0,0.00040589,31]
[334236511,1722853633340,-500.0,0.00040589,31]
[334236512,1722853633364,-640.3169584,0.00040589,31]
[334236513,1722853633387,-19694.95484504,0.0004059,5]
[334236514,1722853633408,-370.69,0.00040643,120]
[334236515,1722853633432,-20850.1431064,0.0004068,5]
[334236516,1722853633455,-84846.14224195,0.0004069,2]
[334236517,1722853633539,-82186.84187659,0.0004069,2]
[334236518,1722853633560,-5112.574999,0.000407,120]
[334236519,1722853633581,-181445.60423287,0.000408,30]
[334236520,1722853633602,-150.0,0.000408,30]
[334236521,1722853633623,-154.64261285,0.0004081,55]
[334236522,1722853633646,-151.0,0.00040849,120]
[334236523,1722853633669,-6950.04770215,0.00040985,5]
[334236524,1722853633692,-337.86899133,0.00040995,2]
[334236525,1722853633714,-2000.0,0.00040995,2]
[334236526,1722853633735,-200.0,0.00040995,120]
[334236527,1722853633757,-1678.49183443,0.00040999,120]
[334236528,1722853633783,-5000.0,0.00041,41]
[334236529,1722853633804,-164.0,0.00041,14]
[334236530,1722853633826,-11143.59016963,0.00041,15]
[334236531,1722853633848,-10225.15,0.00041,120]
[334236532,1722853633869,-152.0,0.00041041,31]
[334236533,1722853633891,-152.0,0.00041041,31]
[334236534,1722853633911,-150.5,0.00041055,120]
[334236535,1722853633932,-150.5,0.00041065,120]
[334236536,1722853633953,-150.5,0.00041075,120]
[334236537,1722853633976,-62550.4293193,0.00041085,5]
[334236538,1722853633997,-500.0,0.00041095,31]
[334236539,1722853634018,-500.0,0.00041095,31]
[334236540,1722853634039,-504.76280093,0.00041095,31]
[334236541,1722853634060,-500.0,0.00041095,31]
[334236542,1722853634081,-500.0,0.00041095,31]
[334236543,1722853634101,-500.0,0.00041095,31]
[334236544,1722853634122,-500.0,0.00041095,31]
[334236545,1722853634145,-500.0,0.00041095,31]
[334236546,1722853634166,-500.0,0.00041095,31]
[334236547,1722853634189,-500.0,0.00041095,31]
[334236548,1722853634211,-500.0,0.00041095,31]
[334236549,1722853634232,-500.0,0.00041095,31]
[334236550,1722853634254,-500.0,0.00041095,31]
[334236551,1722853634275,-500.0,0.00041095,31]
[334236552,1722853634300,-500.0,0.00041095,31]
[334236553,1722853634322,-500.0,0.00041095,31]
[334236554,1722853634343,-500.0,0.00041095,31]
[334236555,1722853634364,-518.91073501,0.00041095,31]
[334236556,1722853634385,-500.0,0.00041095,31]
[334236557,1722853634407,-500.0,0.00041095,31]
[334236558,1722853634429,-343.19968363,0.00041095,31]
[334236559,1722853634451,-319.48805304,0.00041095,31]
[334236560,1722853634473,-500.0,0.00041095,31]
[334236561,1722853634494,-500.0,0.00041095,31]
[334236562,1722853634514,-500.0,0.00041095,31]
[334236563,1722853634534,-543.93460481,0.00041095,31]
[334236564,1722853634555,-502.07940977,0.00041095,7]
[334236565,1722853634576,-500.0,0.00041095,31]
[334236566,1722853634597,-500.0,0.00041095,31]
[334236567,1722853634617,-500.0,0.00041095,31]
[334236568,1722853634639,-500.0,0.00041095,31]
[334236569,1722853634661,-500.0,0.00041095,31]
[334236570,1722853634683,-500.0,0.00041095,31]
[334236571,1722853634704,-500.0,0.00041095,31]
[334236572,1722853634861,-500.0,0.00041095,31]
[334236573,1722853634886,-500.0,0.00041095,31]
[334236574,1722853634914,-916.42,0.00041095,31]
[334236575,1722853634934,-500.0,0.00041095,31]
[334236576,1722853634954,-500.0,0.00041095,31]
[334236577,1722853634976,-500.0,0.00041095,31]
[334236578,1722853634996,-500.0,0.00041095,31]
[334236579,1722853635017,-618.55865275,0.00041095,31]
[334236580,1722853635038,-500.0,0.00041095,31]
[334236581,1722853635059,-500.0,0.00041095,31]
[334236582,1722853635080,-500.0,0.00041095,31]
[334236583,1722853635101,-226.28896274,0.00041095,31]
[334236584,1722853635121,-500.0,0.00041095,31]
[334236585,1722853635144,-1238.32,0.00041095,31]
[334236586,1722853635165,-500.0,0.00041095,31]
[334236587,1722853635187,-500.0,0.00041095,31]
[334236588,1722853635208,-500.0,0.00041095,31]
[334236589,1722853635232,-500.0,0.00041095,31]
[334236590,1722853635253,-500.0,0.00041095,31]
[334236591,1722853635273,-500.0,0.00041095,31]
[334236592,1722853635299,-500.0,0.00041095,31]
[334236593,1722853635320,-1344.12,0.00041095,31]
[334236594,1722853635343,-500.0,0.00041095,31]
[334236595,1722853635365,-500.0,0.00041095,31]
[334236596,1722853635391,-579.77,0.00041095,31]
[334236597,1722853635417,-500.0,0.00041095,31]
[334236598,1722853635437,-500.0,0.00041095,31]
[334236599,1722853635460,-508.27,0.00041095,31]
[334236600,1722853635482,-500.0,0.00041095,31]
[334236601,1722853635502,-701.19,0.00041095,31]
[334236602,1722853635522,-500.0,0.00041095,31]
[334236603,1722853635542,-500.0,0.00041095,31]
[334236604,1722853635563,-500.0,0.00041095,31]
[334236605,1722853635584,-500.0,0.00041095,31]
[334236606,1722853635605,-500.0,0.00041095,31]
[334236607,1722853635626,-347.80773739,0.00041095,31]
[334236608,1722853635658,-501.42962592,0.00041095,31]
[334236609,1722853635679,-500.0,0.00041095,31]
[334236610,1722853635700,-504.15012891,0.00041095,31]
[334236611,1722853635722,-500.0,0.00041095,10]
[334236612,1722853635742,-500.0,0.00041095,31]
[334236613,1722853635764,-506.16787952,0.00041095,31]
[334236614,1722853635783,-500.0,0.00041095,31]
[334236615,1722853635805,-240.06987795,0.00041095,31]
[334236616,1722853635825,-500.0,0.00041095,31]
[334236617,1722853635845,-500.0,0.00041095,31]
[334236618,1722853635867,-500.0,0.00041095,31]
[334236619,1722853635890,-500.0,0.00041095,31]
[334236620,1722853635911,-503.88787035,0.00041095,31]
[334236621,1722853635932,-500.0,0.00041095,31]
[334236622,1722853635953,-500.0,0.00041095,31]
[334236623,1722853635974,-500.0,0.00041095,31]
[334236624,1722853635994,-500.0,0.00041095,31]
[334236625,1722853636015,-500.0,0.00041095,31]
[334236626,1722853636035,-500.0,0.00041095,31]
[334236627,1722853636055,-500.0,0.00041095,31]
[334236628,1722853636076,-440.78031759,0.00041095,31]
[334236629,1722853636097,-262.48193234,0.00041095,31]
[334236630,1722853636118,-500.0,0.00041095,31]
[334236631,1722853636139,-530.03933689,0.00041095,31]
[334236632,1722853636159,-500.0,0.00041095,31]
[334236633,1722853636180,-500.0,0.00041095,31]
[334236634,1722853636200,-500.0,0.00041095,31]
[334236635,1722853636220,-500.0,0.00041095,31]
[334236636,1722853636241,-500.0,0.00041095,31]
[334236637,1722853636262,-500.0,0.00041095,31]
[334236638,1722853636286,-500.0,0.00041095,31]
[334236639,1722853636306,-500.0,0.00041095,31]
[334236640,1722853636327,-500.0,0.00041095,31]
[334236641,1722853636347,-500.0,0.00041095,31]
[334236642,1722853636370,-500.0,0.00041095,31]
[334236643,1722853636392,-505.4627351,0.00041095,31]
[334236644,1722853636413,-500.0,0.00041095,31]
[334236645,1722853636434,-533.49723176,0.00041095,31]
[334236646,1722853636456,-1294.28,0.00041095,31]
[334236647,1722853636478,-534.98,0.00041095,31]
[334236648,1722853636500,-504.90931288,0.00041095,31]
[334236649,1722853636521,-500.0,0.00041095,31]
[334236650,1722853636542,-500.0,0.00041095,31]
[334236651,1722853636563,-500.0,0.00041095,31]
[334236652,1722853636584,-500.0,0.00041095,31]
[334236653,1722853636605,-500.0,0.00041095,31]
[334236654,1722853636628,-793.78,0.00041095,31]
[334236655,1722853636658,-500.0,0.00041095,31]
[334236656,1722853636687,-500.0,0.00041095,31]
[334236657,1722853636711,-500.0,0.00041095,31]
[334236658,1722853636733,-500.0,0.00041095,31]
[334236659,1722853636755,-500.0,0.00041095,2]
[334236660,1722853636778,-500.0,0.00041095,31]
[334236661,1722853636800,-500.0,0.00041095,31]
[334236662,1722853636822,-500.0,0.00041095,31]
[334236663,1722853636843,-500.0,0.00041095,31]
[334236664,1722853636864,-500.0,0.00041095,31]
[334236665,1722853636888,-506.10327438,0.00041095,31]
[334236666,1722853636909,-500.0,0.00041095,31]
[334236667,1722853636930,-744.45,0.00041095,31]
[334236668,1722853636952,-500.0,0.00041095,31]
[334236669,1722853636973,-500.0,0.00041095,31]
[334236670,1722853636995,-500.0,0.00041095,31]
[334236671,1722853637017,-500.0,0.00041095,31]
[334236672,1722853637038,-500.0,0.00041095,31]
[334236673,1722853637059,-1515.98,0.00041095,31]
[334236674,1722853637081,-500.0,0.00041095,31]
[334236675,1722853637103,-500.0,0.00041095,31]
[334236676,1722853637124,-500.0,0.00041095,31]
[334236677,1722853637148,-500.0,0.00041095,31]
[334236678,1722853637168,-500.0,0.00041095,31]
[334236679,1722853637190,-500.0,0.00041095,31]
[334236680,1722853637210,-500.0,0.00041095,31]
[334236681,1722853637231,-500.0,0.00041095,31]
[334236682,1722853637251,-500.0,0.00041095,31]
[334236683,1722853637273,-1575.68,0.00041095,31]
[334236684,1722853637296,-505.9044758,0.00041095,31]
[334236685,1722853637318,-500.0,0.00041095,31]
[334236686,1722853637339,-500.0,0.00041095,31]
[334236687,1722853637361,-500.0,0.00041095,31]
[334236688,1722853637383,-500.0,0.00041095,31]
[334236689,1722853637407,-500.0,0.00041095,31]
[334236690,1722853637429,-524.46,0.00041095,31]
[334236691,1722853637453,-500.0,0.00041095,31]
[334236692,1722853637476,-658.85,0.00041095,31]
[334236693,1722853637498,-500.0,0.00041095,31]
[334236694,1722853637519,-500.0,0.00041095,31]
[334236695,1722853637540,-500.0,0.00041095,31]
[334236696,1722853637562,-167.93533881,0.00041095,31]
[334236697,1722853637583,-500.0,0.00041095,31]
[334236698,1722853637604,-500.0,0.00041095,31]
[334236699,1722853637625,-500.0,0.00041095,31]
[334236700,1722853637649,-207.10887362,0.00041095,31]
[334236701,1722853637671,-500.0,0.00041095,31]
[334236702,1722853637828,-500.0,0.00041095,31]
[334236703,1722853637851,-500.0,0.00041095,31]
[334236704,1722853637873,-500.0,0.00041095,31]
[334236705,1722853637897,-500.0,0.00041095,31]
[334236706,1722853637919,-828.08,0.00041095,31]
[334236707,1722853637942,-1306.9,0.00041095,31]
[334236708,1722853637963,-500.0,0.00041095,31]
[334236709,1722853637985,-500.0,0.00041095,31]
[334236710,1722853638006,-500.0,0.00041095,31]
[334236711,1722853638028,-500.0,0.00041095,31]
[334236712,1722853638050,-500.0,0.00041095,31]
[334236713,1722853638071,-500.0,0.00041095,31]
[334236714,1722853638093,-1667.27,0.00041095,31]
[334236715,1722853638115,-500.0,0.00041095,31]
[334236716,1722853638139,-500.0,0.00041095,31]
[334236717,1722853638162,-500.0,0.00041095,31]
[334236718,1722853638193,-500.0,0.00041095,31]
[334236719,1722853638218,-918.6,0.00041095,31]
[334236720,1722853638242,-1530.01,0.00041095,31]
[334236721,1722853638265,-500.0,0.00041095,31]
[334236722,1722853638291,-500.0,0.00041095,31]
[334236723,1722853638314,-915.69,0.00041095,31]
[334236724,1722853638337,-500.0,0.00041095,31]
[334236725,1722853638360,-504.90918618,0.00041095,31]
[334236726,1722853638382,-500.0,0.00041095,31]
[334236727,1722853638416,-500.0,0.00041095,31]
[334236728,1722853638439,-500.0,0.00041095,31]
[334236729,1722853638462,-500.0,0.00041095,31]
[334236730,1722853638484,-726.33,0.00041095,31]
[334236731,1722853638506,-500.0,0.00041095,31]
[334236732,1722853638527,-507.02143207,0.00041095,31]
[334236733,1722853638549,-500.0,0.00041095,31]
[334236734,1722853638571,-500.0,0.00041095,31]
[334236735,1722853638593,-500.0,0.00041095,31]
[334236736,1722853638615,-500.0,0.00041095,31]
[334236737,1722853638637,-500.0,0.00041095,31]
[334236738,1722853638659,-500.0,0.00041095,31]
[334236739,1722853638681,-500.0,0.00041095,31]
[334236740,1722853638704,-500.0,0.00041095,31]
[334236741,1722853638725,-500.0,0.00041095,31]
[334236742,1722853638747,-500.0,0.00041095,31]
[334236743,1722853638769,-500.0,0.00041095,31]
[334236744,1722853638791,-500.0,0.00041095,31]
[334236745,1722853638817,-500.0,0.00041095,31]
[334236746,1722853638840,-500.0,0.00041095,31]
[334236747,1722853638863,-500.0,0.00041095,31]
[334236748,1722853638885,-500.0,0.00041095,31]
[334236749,1722853638909,-500.0,0.00041095,31]
[334236750,1722853638931,-500.0,0.00041095,31]
[334236751,1722853638953,-500.0,0.00041095,31]
[334236752,1722853638975,-1623.86,0.00041095,31]
[334236753,1722853638997,-500.0,0.00041095,31]
[334236754,1722853639018,-500.0,0.00041095,31]
[334236755,1722853639040,-500.0,0.00041095,31]
[334236756,1722853639063,-500.0,0.00041095,31]
[334236757,1722853639084,-500.0,0.00041095,31]
[334236758,1722853639106,-500.0,0.00041095,31]
[334236759,1722853639129,-500.0,0.00041095,31]
[334236760,1722853639152,-500.0,0.00041095,31]
[334236761,1722853639173,-503.65500836,0.00041095,31]
[334236762,1722853639196,-500.0,0.00041095,31]
[334236763,1722853639218,-500.0,0.00041095,31]
[334236764,1722853639240,-500.0,0.00041095,31]
[334236765,1722853639263,-500.0,0.00041095,31]
[334236766,1722853639288,-500.0,0.00041095,31]
[334236767,1722853639318,-500.0,0.00041095,31]
[334236768,1722853639342,-500.0,0.00041095,31]
[334236769,1722853639364,-500.0,0.00041095,31]
[334236770,1722853639390,-1021.98,0.00041095,31]
[334236771,1722853639412,-500.0,0.00041095,31]
[334236772,1722853639434,-500.0,0.00041095,31]
[334236773,1722853639460,-500.0,0.00041095,31]
[334236774,1722853639483,-500.0,0.00041095,31]
[334236775,1722853639506,-503.97,0.00041095,31]
[334236776,1722853639528,-500.0,0.00041095,31]
[334236777,1722853639551,-500.0,0.00041095,31]
[334236778,1722853639572,-555.28703829,0.00041095,31]
[334236779,1722853639594,-507.83298039,0.00041095,31]
[334236780,1722853639617,-500.0,0.00041095,31]
[334236781,1722853639642,-500.0,0.00041095,31]
[334236782,1722853639664,-500.0,0.00041095,31]
[334236783,1722853639687,-500.0,0.00041095,31]
[334236784,1722853639712,-500.0,0.00041095,31]
[334236785,1722853639735,-506.87190737,0.00041095,31]
[334236786,1722853639758,-738.95,0.00041095,31]
[334236787,1722853639779,-500.0,0.00041095,31]
[334236788,1722853639802,-500.0,0.00041095,31]
[334236789,1722853639824,-500.0,0.00041095,31]
[334236790,1722853639846,-500.0,0.00041095,31]
[334236791,1722853639868,-500.0,0.00041095,31]
[334236792,1722853639890,-500.0,0.00041095,31]
[334236793,1722853639912,-500.0,0.00041095,31]
[334236794,1722853639934,-500.0,0.00041095,31]
[334236795,1722853639957,-500.0,0.00041095,31]
[334236796,1722853639980,-257.26287464,0.00041095,31]
[334236797,1722853640005,-500.0,0.00041095,31]
[334236798,1722853640028,-500.0,0.00041095,31]
[334236799,1722853640051,-907.21,0.00041095,31]
[334236800,1722853640072,-500.0,0.00041095,31]
[334236801,1722853640094,-1127.47,0.00041095,31]
[334236802,1722853640116,-500.0,0.00041095,31]
[334236803,1722853640139,-500.0,0.00041095,31]
[334236804,1722853640163,-500.0,0.00041095,31]
[334236805,1722853640185,-485.0,0.00041095,31]
[334236806,1722853640207,-508.87286016,0.00041095,20]
[334236807,1722853640228,-500.0,0.00041095,31]
[334236808,1722853640251,-500.0,0.00041095,31]
[334236809,1722853640273,-640.99,0.00041095,31]
[334236810,1722853640299,-500.0,0.00041095,31]
[334236811,1722853640322,-500.0,0.00041095,31]
[334236812,1722853640343,-500.0,0.00041095,31]
[334236813,1722853640366,-500.0,0.00041095,31]
[334236814,1722853640389,-500.0,0.00041095,31]
[334236815,1722853640411,-500.0,0.00041095,31]
[334236816,1722853640433,-500.0,0.00041095,31]
[334236817,1722853640454,-500.0,0.00041095,31]
[334236818,1722853640477,-500.0,0.00041095,30]
[334236819,1722853640498,-500.0,0.00041095,2]
[334236820,1722853640519,-500.0,0.00041095,31]
[334236821,1722853640540,-500.0,0.00041095,31]
[334236822,1722853640564,-500.0,0.00041095,31]
[334236823,1722853640587,-519.76610657,0.00041095,31]
[334236824,1722853640610,-1725.99,0.00041095,31]
[334236825,1722853640633,-500.0,0.00041095,31]
[334236826,1722853640811,-500.0,0.00041095,31]
[334236827,1722853640834,-200.0,0.00041095,7]
[334236828,1722853640856,-500.0,0.00041095,31]
[334236829,1722853640878,-500.0,0.00041095,31]
[334236830,1722853640902,-500.0,0.00041095,31]
[334236831,1722853640924,-500.0,0.00041095,31]
[334236832,1722853640945,-500.0,0.00041095,31]
[334236833,1722853640967,-500.0,0.00041095,31]
[334236834,1722853640990,-407.47976831,0.00041095,31]
[334236835,1722853641014,-803.96,0.00041095,31]
[334236836,1722853641036,-578.83,0.00041095,31]
[334236837,1722853641058,-501.78051774,0.00041095,31]
[334236838,1722853641079,-500.0,0.00041095,31]
[334236839,1722853641102,-500.0,0.00041095,31]